bitfinex/quotes_ETHUSD_20250808
["timestamp","ask_amount","ask_price","bid_price","bid_amount"]
[1754637958710,0.002,3920.1,3920.0,10.9375204]
[1754637959686,0.002,3920.1,3920.0,9.6042204]
[1754637960298,0.002,3920.1,3920.0,7.0522]
[1754637960499,0.002,3920.1,3920.0,9.4760204]
[1754637961410,0.8908,3920.1,3920.0,6.925]
[1754637962014,0.002,3920.1,3920.0,6.925]
[1754637962208,0.002,3920.1,3920.0,9.4760204]
[1754637962510,0.002,3920.1,3920.0,6.925]
[1754637962712,0.002,3920.1,3920.0,3.0]
[1754637962895,0.002,3920.1,3920.0,6.925]
[1754637963692,1.3393,3920.1,3920.0,6.925]
[1754637963891,1.47343,3920.1,3920.0,6.925]
[1754637964283,1.47343,3920.1,3920.0,3.0]
[1754637964808,1.47343,3920.1,3920.0,6.925]
[1754637967300,1.3393,3920.1,3920.0,6.925]
[1754637969712,0.8908,3920.1,3920.0,6.925]
[1754637970321,0.8908,3920.1,3920.0,3.0]
[1754637970522,1.3393,3920.1,3920.0,6.924]
[1754637971710,0.8908,3920.1,3920.0,6.924]
[1754637971915,0.002,3920.1,3920.0,6.925]
[1754637972421,0.002,3920.1,3920.0,3.001]
[1754637972616,0.002,3920.1,3920.0,6.925]
[1754637974528,0.002,3920.1,3920.0,15.92921757]
[1754637975524,0.002,3920.1,3920.0,18.48023797]
[1754637976504,0.002,3920.1,3920.0,9.4760204]
[1754637976722,0.002,3920.1,3920.0,6.925]
[1754637977194,0.002,3920.1,3920.0,9.4760204]
[1754637978526,0.002,3920.1,3920.0,5.5520204]
[1754637979643,0.002,3920.1,3920.0,9.4750204]
[1754637980843,0.002,3920.1,3920.0,6.924]
[1754637981016,0.002,3920.1,3920.0,9.4750204]
[1754637983242,0.002,3920.1,3920.0,10.3355204]
[1754637984140,0.002,3920.1,3920.0,6.924]
[1754637984301,1.312,3920.1,3920.0,6.924]
[1754637984501,0.9924,3920.1,3920.0,3.924]
[1754637984807,1.4434,3920.1,3920.0,3.924]
[1754637985030,1.4434,3920.1,3920.0,6.924]
[1754637985224,1.4434,3920.1,3920.0,3.924]
[1754637985426,1.4434,3920.1,3920.0,0.001]
[1754637985945,1.4434,3920.1,3920.0,6.923]
[1754637990423,1.4434,3920.1,3920.0,3.001]
[1754637990623,1.4434,3920.1,3920.0,6.923]
[1754637990819,0.1334,3920.1,3920.0,6.923]
[1754637991134,0.861,3920.1,3920.0,6.923]
[1754637991328,1.312,3920.1,3920.0,6.923]
[1754637993048,1.312,3920.1,3920.0,3.923]
[1754637994144,1.312,3920.1,3919.6,0.001]
[1754637994145,1.862,3920.1,3919.6,0.001]
[1754637994351,1.862,3920.1,3919.6,3.923]
[1754637994352,1.51716869,3920.0,3919.6,3.923]
[1754637994550,0.21582979,3920.0,3919.6,3.923]
[1754637994845,1.31,3919.9,3919.6,3.923]
[1754637995048,0.21582979,3920.0,3919.6,3.923]
[1754637995236,1.31,3919.8,3919.6,3.923]
[1754637995439,1.409,3919.7,3919.6,0.001]
[1754637995640,1.86,3919.7,3919.6,0.001]
[1754637996161,1.8686611,3919.7,3919.6,0.001]
[1754637996348,2.43574072,3919.7,3919.6,0.001]
[1754637997126,2.71967584,3919.7,3919.6,0.001]
[1754637998140,2.15259622,3919.7,3919.6,0.001]
[1754637998662,1.60259622,3919.7,3919.6,0.001]
[1754638001648,0.29259622,3919.7,3919.6,0.001]
[1754638001872,0.29259622,3919.7,3919.6,0.8615]
[1754638002070,0.28393512,3919.7,3919.6,8.2158]
[1754638004758,0.28393512,3919.7,3919.6,8.499735]
[1754638007990,0.28393512,3919.7,3919.6,8.755235]
[1754638013093,0.28393512,3919.7,3919.6,8.321935]
[1754638013494,0.28393512,3919.7,3919.6,7.461435]
[1754638013790,1.55103512,3919.7,3919.6,7.204935]
[1754638013993,1.70613863,3919.7,3919.6,7.204935]
[1754638014797,1.71480003,3919.7,3919.6,7.204935]
[1754638015689,1.26600003,3919.7,3919.6,7.204935]
[1754638015898,1.26600003,3919.7,3919.6,6.921]
[1754638016082,0.44770003,3919.7,3919.6,6.921]
[1754638016396,0.29259652,3919.7,3919.6,6.921]
[1754638017165,0.28393512,3919.7,3919.6,7.7604]
[1754638017364,0.8203,3920.1,3919.7,3.0]
[1754638017698,1.2691,3920.1,3919.9,3.0]
[1754638017863,1.2691,3920.1,3920.0,6.919]
[1754638018067,1.39707624,3920.1,3920.0,6.919]
[1754638018268,0.12997624,3920.1,3920.0,6.919]
[1754638018469,0.12997624,3920.1,3920.0,8.1908]
[1754638018700,0.002,3920.1,3920.0,8.1908]
[1754638020298,0.002,3920.1,3920.0,6.919]
[1754638021215,0.002,3920.1,3920.0,7.7584]
[1754638021519,0.002,3920.1,3920.0,8.1908]
[1754638022570,0.002,3920.1,3920.0,5.1908]
[1754638022767,0.002,3920.1,3920.0,3.919]
[1754638024986,0.002,3920.1,3920.0,6.919]
[1754638025389,0.002,3920.1,3920.0,8.1908]
[1754638026913,0.002,3920.1,3920.0,10.7418204]
[1754638027813,0.002,3920.1,3920.0,8.1908]
[1754638028022,0.002,3920.1,3920.0,7.1735]
[1754638028174,0.002,3920.1,3920.0,6.918]
[1754638028382,0.002,3920.1,3920.0,8.1898]
[1754638029502,0.002,3920.1,3920.0,7.7574]
[1754638029878,0.002,3920.1,3920.0,3.0]
[1754638030090,0.002,3920.1,3920.0,6.918]
[1754638030290,0.002,3920.1,3920.0,7.7574]
[1754638030496,0.002,3920.1,3920.0,8.1898]
[1754638033791,0.002,3920.1,3920.0,17.19401757]
[1754638036123,0.002,3920.1,3920.0,3.0]
[1754638036299,0.002,3920.1,3920.0,6.916]
[1754638036994,0.002,3920.1,3920.0,3.916]
[1754638037423,0.002,3920.1,3920.0,6.916]
[1754638039907,1.1006,3920.1,3920.0,3.0]
[1754638040222,1.1006,3920.1,3920.0,6.916]
[1754638040691,1.1092602,3920.1,3920.0,6.916]
[1754638042016,0.19767231,3920.1,3920.0,3.916]
[1754638042416,0.19767231,3920.1,3920.0,4.7976]
[1754638042627,0.0106602,3920.1,3920.0,3.916]
[1754638043030,0.0106602,3920.1,3920.0,4.3505]
[1754638043216,0.0106602,3920.1,3920.0,5.2321]
[1754638043534,0.002,3920.1,3920.0,5.2321]
[1754638045410,0.002,3920.1,3920.0,17.23631757]
[1754638045816,0.002,3920.1,3920.0,17.49181757]
[1754638051234,0.002,3920.1,3920.0,20.04283797]
[1754638051599,0.002,3920.1,3920.0,17.49181757]
[1754638052144,0.002,3920.1,3920.0,7.1695]
[1754638053233,0.002,3920.1,3920.0,8.0511]
[1754638053416,0.002,3920.1,3920.0,8.4856]
[1754638055349,0.002,3920.1,3920.0,11.0366204]
[1754638055824,0.002,3920.1,3920.0,8.4856]
[1754638056214,0.002,3920.1,3920.0,11.0366204]
[1754638056951,0.002,3920.1,3920.0,8.4856]
[1754638057168,0.002,3920.1,3920.0,8.0511]
[1754638057655,0.002,3920.1,3920.0,8.4856]
[1754638059665,0.002,3920.1,3920.0,8.0511]
[1754638060459,0.002,3920.1,3920.0,3.2555]
[1754638060661,0.002,3920.1,3920.0,7.1685]
[1754638064082,0.002,3920.1,3920.0,3.2555]
[1754638064370,1.3078,3920.1,3920.0,7.1675]
[1754638064577,0.13298,3920.1,3920.0,8.014]
[1754638064762,0.002,3920.1,3920.0,8.014]
[1754638066178,0.002,3920.1,3920.0,7.1675]
[1754638066681,0.002,3920.1,3920.0,3.2555]
[1754638066851,1.3078,3920.1,3920.0,3.2555]
[1754638067162,1.3078,3920.1,3920.0,7.1675]
[1754638067372,1.3078,3920.1,3920.0,4.1675]
[1754638067734,1.3078,3920.1,3919.7,0.766394]
[1754638068049,1.3058,3920.0,3919.8,3.912]
[1754638068368,1.43658,3919.9,3919.6,0.001]
[1754638068570,1.3058,3919.8,3919.6,0.001]
[1754638068973,1.3058,3919.8,3919.7,6.912]
[1754638069963,1.314461,3919.8,3919.7,6.912]
[1754638070181,0.878861,3919.8,3919.7,6.912]
[1754638070351,0.1387751,3919.8,3919.7,6.912]
[1754638070673,0.008661,3919.8,3919.7,6.912]
[1754638074853,0.008661,3919.8,3919.7,3.912]
[1754638075387,1.314461,3919.8,3919.7,3.912]
[1754638075671,0.008661,3919.8,3919.7,3.912]
[1754638076051,0.8702,3920.0,3919.7,3.912]
[1754638076270,1.00098,3919.9,3919.7,3.912]
[1754638077152,0.13078,3919.9,3919.7,3.912]
[1754638079092,0.0106624,3920.1,3919.8,1.2815]
[1754638079295,0.002,3920.1,3919.9,3.911]
[1754638079499,0.002,3920.1,3919.9,5.1925]
[1754638079683,0.002,3920.1,3919.9,3.911]
[1754638080056,0.002,3920.1,3920.0,3.911]
[1754638080257,1.3058,3920.0,3919.6,0.001]
[1754638080557,1.00098,3919.9,3919.6,0.001]
[1754638080785,1.00098,3919.9,3919.7,3.911]
[1754638080972,0.13078,3919.9,3919.7,3.911]
[1754638081172,0.8722,3920.1,3919.7,3.911]
[1754638081496,1.3058,3920.0,3919.7,3.911]
[1754638081659,0.4356,3920.0,3919.7,3.911]
[1754638081957,0.8702,3919.9,3919.7,3.911]
[1754638082507,0.4356,3920.0,3919.7,3.911]
[1754638082672,0.13078,3919.9,3919.7,3.911]
[1754638083007,1.3058,3920.0,3919.7,3.911]
[1754638083205,0.8702,3920.0,3919.7,3.911]
[1754638085404,0.002,3920.1,3919.7,3.911]
[1754638085913,0.002,3920.1,3919.8,1.2815]
[1754638086087,0.002,3920.1,3919.9,3.91]
[1754638086813,0.8722,3920.1,3920.0,3.91]
[1754638087109,1.00318,3920.1,3920.0,3.91]
[1754638087308,0.13298,3920.1,3919.6,0.001]
[1754638087603,0.008662,3920.0,3919.7,3.91]
[1754638088211,0.008662,3920.0,3919.7,13.76071757]
[1754638088406,0.008662,3920.0,3919.6,0.001]
[1754638088597,0.008662,3920.0,3919.8,3.91]
[1754638088998,0.878862,3920.0,3919.8,3.91]
[1754638089201,0.008662,3920.0,3919.8,3.91]
[1754638089381,0.8702,3919.9,3919.8,3.91]
[1754638089581,1.0018462,3919.9,3919.8,3.91]
[1754638090032,1.0105082,3919.9,3919.8,3.91]
[1754638090183,0.1403082,3919.9,3919.8,3.91]
[1754638090383,0.008662,3919.9,3919.8,3.91]
[1754638091593,0.008662,3919.9,3919.6,0.001]
[1754638091799,0.008662,3919.9,3919.7,3.91]
[1754638092000,0.878862,3919.9,3919.7,3.91]
[1754638092412,0.008662,3919.9,3919.7,3.91]
[1754638093495,0.008662,3919.9,3919.7,4.7565]
[1754638093696,0.1403082,3919.9,3919.7,4.7565]
[1754638094016,0.1403082,3919.9,3919.7,3.91]
[1754638094390,0.1403082,3919.9,3919.7,4.7046]
[1754638095618,0.008662,3919.9,3919.7,4.7046]
[1754638095996,0.008662,3919.9,3919.7,4.3791]
[1754638096199,0.008662,3919.9,3919.8,0.7946]
[1754638096718,0.008662,3919.9,3919.8,4.2637]
[1754638097119,0.002,3920.1,3919.8,4.2637]
[1754638097318,0.002,3920.1,3920.0,3.0]
[1754638098058,0.002,3920.1,3920.0,7.0702204]
[1754638099548,0.002,3920.1,3920.0,17.43241757]
[1754638099826,0.002,3920.1,3920.0,6.908]
[1754638100021,0.002,3920.1,3920.0,8.1717]
[1754638100868,0.002,3920.1,3920.0,8.4272]
[1754638101260,0.002,3920.1,3920.0,10.9782204]
[1754638101944,0.002,3920.1,3920.0,11.5282204]
[1754638105447,0.002,3920.1,3920.0,12.07794935]
[1754638105956,0.1,3922.9,3920.3,3.55]
[1754638106161,5.56629537,3923.5,3920.7,3.55]
[1754638106356,9.00421757,3922.7,3920.9,3.55]
[1754638106558,0.0086608,3922.6,3921.1,0.55]
[1754638106880,9.00261757,3922.7,3921.3,0.55]
[1754638107182,2.61648591,3922.5,3921.5,0.55]
[1754638107384,1.16191035,3922.4,3921.6,4.45672895]
[1754638107683,0.0086603,3922.4,3921.8,0.55]
[1754638107881,0.4552,3922.3,3922.0,0.55]
[1754638108047,0.0086603,3922.4,3922.2,0.55]
[1754638108250,2.61099568,3922.4,3922.3,1.09972895]
[1754638108450,2.61099568,3922.4,3921.7,3.907]
[1754638108651,0.26109957,3922.3,3921.8,0.54944535]
[1754638108963,0.26109957,3922.3,3921.2,9.00421757]
[1754638108964,5.05587513,3923.7,3922.0,3.0]
[1754638109158,3.907,3923.7,3923.3,11.90293686]
[1754638109366,9.00421757,3923.5,3922.0,3.84660553]
[1754638109716,1.29112176,3923.4,3922.1,0.54924449]
[1754638109869,1.29112176,3923.4,3922.2,0.54924449]
[1754638110058,0.12816695,3923.7,3922.4,3.0]
[1754638110393,0.0086603,3923.3,3922.6,0.55]
[1754638110692,0.0086603,3923.3,3922.5,4.45524449]
[1754638110693,0.0086603,3923.3,3922.8,0.55]
[1754638110893,9.00421757,3923.8,3923.0,0.55]
[1754638111105,1.0647222,3924.3,3923.0,0.55]
[1754638111106,3.906,3924.3,3923.0,0.55]
[1754638111311,9.00421757,3924.0,3922.7,0.55]
[1754638111679,3.1812837,3923.9,3922.6,0.55]
[1754638111995,3.15357149,3923.8,3922.6,3.55]
[1754638112223,9.00421757,3924.4,3922.6,3.55]
[1754638112527,0.90042176,3924.3,3922.6,3.55]
[1754638112701,0.90042176,3924.3,3922.8,0.55]
[1754638112906,9.00421757,3924.6,3923.0,3.55]
[1754638113223,8.76219896,3924.6,3923.0,3.55]
[1754638113625,3.906,3924.9,3923.0,0.55]
[1754638113626,9.00421757,3924.2,3923.0,0.55]
[1754638113826,0.90042176,3924.1,3923.2,0.55]
[1754638114032,9.00421757,3924.2,3923.2,3.55]
[1754638114033,0.5796,3924.0,3923.2,3.55]
[1754638114226,0.5788,3924.0,3923.2,3.55]
[1754638114929,0.00865973,3923.9,3923.2,3.55]
[1754638115303,6.56376404,3924.4,3923.2,3.55]
[1754638115503,0.6563764,3924.3,3923.2,3.55]
[1754638115904,9.00421757,3924.7,3923.2,3.55]
[1754638116104,0.04593276,3924.7,3923.2,3.55]
[1754638116308,0.00865973,3924.6,3923.2,3.55]
[1754638116538,0.00865973,3924.6,3924.1,0.55]
[1754638116749,0.00865973,3924.6,3924.0,8.74059424]
[1754638116901,9.00421757,3924.6,3924.0,8.74059424]
[1754638117246,0.90042176,3924.5,3924.0,5.90469106]
[1754638118000,3.01442094,3924.6,3924.0,5.90469106]
[1754638118226,9.00421757,3924.6,3924.0,5.90469106]
[1754638118645,9.00421757,3924.6,3924.1,0.55]
[1754638118824,9.00421757,3924.9,3924.1,0.55]
[1754638119027,1.52644243,3924.8,3924.1,0.55]
[1754638119242,1.52564243,3924.8,3924.1,0.55]
[1754638120682,1.52564243,3924.8,3924.1,0.59]
[1754638120882,0.14760085,3924.8,3924.1,0.59]
[1754638121041,0.77718238,3925.1,3924.1,0.59]
[1754638121400,11.6721541,3925.0,3924.1,0.59]
[1754638121574,9.00421757,3925.1,3924.3,0.55]
[1754638121899,9.00421757,3925.1,3924.5,0.55]
[1754638122077,9.00341757,3925.1,3924.7,0.55]
[1754638122237,9.00421757,3925.1,3924.9,0.55]
[1754638122440,1.16741947,3925.0,3924.9,0.55]
[1754638122685,1.16741947,3925.0,3924.9,1.09730449]
[1754638122869,9.00421757,3925.1,3924.1,0.04]
[1754638123172,9.00421757,3925.0,3924.1,0.04]
[1754638123743,9.00421757,3925.0,3924.1,5.94469106]
[1754638124071,2.11413989,3925.0,3924.1,5.94469106]
[1754638124578,9.00421757,3924.7,3924.1,5.94469106]
[1754638124778,9.00421757,3925.0,3924.2,0.55]
[1754638125266,6.24818661,3925.0,3924.2,0.55]
[1754638125977,0.73612399,3925.0,3924.2,0.55]
[1754638126273,9.00421757,3925.0,3924.2,0.55]
[1754638127076,9.00421757,3925.2,3924.2,0.55]
[1754638127688,9.00421757,3925.4,3924.2,0.55]
[1754638128004,10.07941757,3925.4,3924.2,0.55]
[1754638128216,1.0752,3925.3,3924.2,0.55]
[1754638129200,9.00421757,3925.4,3924.2,3.55]
[1754638130003,4.18121581,3925.4,3924.2,0.55]
[1754638130203,0.08043666,3925.7,3924.2,0.55]
[1754638130394,0.41778191,3926.1,3924.4,0.55]
[1754638130594,9.01407445,3926.3,3924.6,0.55]
[1754638130820,9.00421757,3926.0,3924.8,0.55]
[1754638131021,9.00421757,3926.0,3925.3,0.55]
[1754638131221,9.50721757,3925.9,3925.5,0.55]
[1754638131542,0.503,3925.8,3925.5,0.55]
[1754638131749,0.503,3925.8,3925.5,0.48621538]
[1754638131951,0.503,3925.7,3925.5,0.48621538]
[1754638132096,0.503,3925.6,3925.5,0.48621538]
[1754638133235,9.00421757,3925.8,3925.5,0.48621538]
[1754638134324,9.00421757,3926.0,3925.5,0.48621538]
[1754638134719,9.00421757,3926.3,3925.5,1.62621538]
[1754638134929,9.00421757,3926.3,3925.7,0.55]
[1754638135160,9.00421757,3926.3,3925.9,0.55]
[1754638135342,9.00421757,3926.3,3926.1,0.55]
[1754638135544,9.00421757,3926.3,3926.2,4.99912284]
[1754638136320,3.64600628,3927.2,3926.3,0.55]
[1754638136562,2.42239296,3926.4,3926.3,0.55]
[1754638136854,9.00421757,3926.4,3926.3,1.09811777]
[1754638137249,2.11702932,3926.4,3926.3,1.09811777]
[1754638137552,0.05063284,3926.4,3926.3,1.09811777]
[1754638138049,9.00421757,3926.4,3926.3,1.09811777]
[1754638139235,9.00421757,3926.5,3926.3,1.09811777]
[1754638139437,9.00421757,3926.5,3926.4,1.09811777]
[1754638139837,9.00421757,3927.0,3926.5,0.55]
[1754638140044,9.00421757,3927.0,3926.7,0.55]
[1754638140367,9.00421757,3927.0,3926.6,4.44811777]
[1754638140368,9.00421757,3927.0,3926.9,0.55]
[1754638140573,9.00421757,3927.0,3926.9,1.09811777]
[1754638141243,2.54584716,3928.0,3926.9,1.09811777]
[1754638141460,3.9,3927.8,3927.1,0.55]
[1754638141661,2.54621378,3927.4,3927.3,0.55]
[1754638141965,2.66461378,3927.4,3927.3,1.09811777]
[1754638142339,2.54621378,3927.4,3927.3,1.09811777]
[1754638142740,11.54963135,3927.4,3927.3,1.09811777]
[1754638143269,11.54883135,3927.4,3927.3,1.09811777]
[1754638143472,9.00421757,3927.4,3927.3,1.09811777]
[1754638143772,0.22710656,3927.4,3927.3,1.09811777]
[1754638143973,0.13316172,3928.8,3927.3,1.09811777]
[1754638143974,0.002,3927.6,3927.3,1.09811777]
[1754638144173,0.002,3927.6,3927.5,0.55]
[1754638144371,0.002,3927.6,3927.5,4.99711777]
[1754638145586,6.63767068,3929.4,3927.5,4.99711777]
[1754638145753,9.00341757,3927.6,3927.5,4.449]
[1754638145953,2.54575415,3928.2,3927.5,4.44657502]
[1754638146154,2.54577333,3928.1,3927.6,1.09757502]
[1754638146377,2.54582943,3928.0,3927.7,0.54757502]
[1754638146560,2.54580764,3928.1,3927.9,0.55]
[1754638146768,2.54571754,3928.2,3928.1,0.55]
[1754638146964,2.54565234,3928.3,3928.1,0.84757502]
[1754638147169,2.54565234,3928.3,3928.2,0.54757502]
[1754638147170,2.54563042,3928.3,3928.2,0.54757502]
[1754638147558,2.54483042,3928.3,3928.2,0.54757502]
[1754638148265,0.26651857,3928.3,3927.9,3.898]
[1754638148576,2.54530645,3928.8,3927.9,3.898]
[1754638148765,2.54478123,3928.4,3927.9,3.898]
[1754638148966,2.54582484,3928.0,3927.9,3.898]
[1754638149169,2.5457171,3928.2,3927.9,3.898]
[1754638149478,2.54581305,3928.1,3927.9,3.898]
[1754638149688,2.54580522,3928.1,3927.9,3.898]
[1754638150186,2.54579388,3928.1,3927.9,3.898]
[1754638150487,2.54524167,3928.9,3927.9,3.898]
[1754638150652,3.898,3929.6,3927.9,3.898]
[1754638150653,2.54567859,3928.3,3927.9,3.898]
[1754638151280,2.54549593,3928.6,3928.0,0.55]
[1754638151679,2.54466022,3928.6,3928.0,0.55]
[1754638152085,10.0,3929.4,3928.0,0.55]
[1754638152250,2.54547512,3928.6,3928.0,0.55]
[1754638152578,2.54564514,3928.3,3927.5,0.55]
[1754638152755,2.54558598,3928.4,3927.7,0.55]
[1754638152955,12.54485509,3929.5,3927.7,0.55]
[1754638152956,2.54549717,3928.6,3927.8,3.897]
[1754638153161,2.54549717,3928.6,3928.0,0.55]
[1754638153355,2.54532874,3928.8,3928.0,0.55]
[1754638153543,10.0,3929.5,3928.0,0.55]
[1754638153544,2.54526512,3928.9,3928.0,0.55]
[1754638153749,10.0,3929.4,3928.0,2.352]
[1754638153947,2.54507398,3929.2,3928.2,0.55]
[1754638154150,0.23402327,3929.5,3928.4,0.55]
[1754638154358,0.19551654,3929.6,3928.6,0.55]
[1754638154359,2.5449435,3929.4,3928.6,0.55]
[1754638154559,2.54414116,3929.4,3928.6,0.55]
[1754638154765,2.54334116,3929.4,3928.6,0.55]
[1754638155081,10.0,3930.4,3928.6,0.55]
[1754638155288,30.0,3930.4,3928.6,0.55]
[1754638155472,2.54504733,3929.2,3928.6,0.55]
[1754638155783,2.54460707,3929.9,3928.6,0.55]
[1754638155982,2.54501023,3929.3,3928.6,0.55]
[1754638156191,2.54439977,3930.2,3928.6,0.55]
[1754638156485,30.0,3930.1,3928.8,0.55]
[1754638156683,4.08769636,3930.5,3928.6,0.55]
[1754638156684,3.05943286,3930.5,3928.6,0.55]
[1754638156871,2.54433503,3930.3,3929.0,0.55]
[1754638157075,2.5447114,3929.8,3929.2,0.55]
[1754638157318,2.54474017,3929.7,3929.2,0.55]
[1754638157502,0.22716779,3930.5,3929.2,0.55]
[1754638157656,2.5447021,3929.8,3929.2,0.55]
[1754638157856,0.36509209,3930.9,3929.4,0.55]
[1754638158087,2.54438111,3930.3,3929.6,0.55]
[1754638158291,2.54438111,3930.3,3929.8,0.55]
[1754638158469,0.36509209,3930.9,3929.8,0.55]
[1754638158670,2.54440359,3930.2,3929.8,0.55]
[1754638158869,2.54360359,3930.2,3929.8,0.55]
[1754638159085,2.54435265,3930.3,3929.8,0.55]
[1754638159386,2.54434305,3930.3,3929.8,2.352]
[1754638159681,2.54432646,3930.4,3930.0,0.55]
[1754638159855,0.36509209,3930.9,3930.0,0.55]
[1754638160055,2.54446451,3930.1,3930.0,0.55]
[1754638160268,2.54446451,3930.1,3930.0,0.54593026]
[1754638160455,0.36509209,3930.9,3930.0,0.54593026]
[1754638160655,2.54433503,3930.3,3930.2,0.55]
[1754638160879,2.54433503,3930.3,3930.2,4.99093026]
[1754638161354,2.54353503,3930.3,3930.2,4.99093026]
[1754638161784,2.54433503,3930.3,3930.2,4.99093026]
[1754638161978,3.0,3930.7,3930.2,4.99093026]
[1754638162178,5.54433503,3930.3,3930.2,4.445]
[1754638162385,5.54433503,3930.3,3930.2,4.99047533]
[1754638162684,3.0,3930.4,3930.2,4.99047533]
[1754638162878,2.54433503,3930.3,3930.2,4.445]
[1754638163079,2.54433503,3930.3,3930.2,4.99055151]
[1754638163769,2.54433503,3930.3,3930.2,1.09555151]
[1754638163971,1.9534256,3930.5,3930.2,4.99055151]
[1754638164195,2.5442703,3930.4,3930.3,0.54555151]
[1754638164357,2.5442703,3930.4,3930.3,1.09555151]
[1754638164560,2.54414281,3930.6,3930.4,0.55]
[1754638164763,5.54414281,3930.6,3930.5,1.09555151]
[1754638165961,5.54414281,3930.6,3929.1,0.04]
[1754638165962,3.0,3929.8,3929.1,0.04]
[1754638166161,0.23215239,3930.8,3929.2,5.696]
[1754638166162,2.54457146,3930.0,3929.2,5.696]
[1754638166378,2.54457865,3930.0,3929.2,5.696]
[1754638166654,1.35239039,3932.4,3929.2,5.696]
[1754638166655,2.93820579,3931.0,3929.2,5.696]
[1754638166858,2.93820579,3931.0,3930.8,7.84540938]
[1754638166859,32.54314667,3930.9,3930.8,7.84540938]
[1754638167058,2.54465878,3929.8,3929.2,1.802]
[1754638167298,2.5446067,3929.9,3929.3,3.894]
[1754638167599,2.33518494,3930.1,3929.3,3.894]
[1754638167906,2.54414084,3930.6,3929.4,3.894]
[1754638168085,3.0,3929.6,3929.5,0.55]
[1754638168258,2.54458903,3930.0,3929.5,0.55]
[1754638168458,2.54414084,3930.6,3929.6,3.894]
[1754638168664,30.0,3930.5,3929.6,3.894]
[1754638169069,2.54460077,3929.9,3929.7,0.55]
[1754638169902,2.54465876,3929.8,3929.7,0.55]
[1754638170200,3.0,3930.3,3929.7,0.55]
[1754638170367,5.54465876,3929.8,3929.7,0.55]
[1754638170701,2.54465876,3929.8,3929.7,0.55]
[1754638171167,0.55,3932.6,3929.7,0.55]
[1754638171368,2.54444049,3930.2,3929.7,0.55]
[1754638171568,32.54448177,3930.1,3929.7,0.55]
[1754638171793,0.93496063,3931.0,3929.7,0.55]
[1754638171979,2.54448177,3930.1,3929.7,0.55]
[1754638172188,2.54432352,3930.4,3929.9,0.55]
[1754638172499,30.0,3930.3,3930.1,0.55]
[1754638172688,3.0,3930.3,3930.1,4.443]
[1754638172902,2.54420557,3930.5,3930.2,1.802]
[1754638173068,2.54420557,3930.5,3930.1,3.893]
[1754638173268,2.54428377,3930.4,3930.2,0.55]
[1754638173468,2.22418171,3930.4,3930.2,0.55]
[1754638174163,2.54408821,3930.7,3930.2,0.55]
[1754638174369,2.54429937,3930.4,3930.2,0.55]
[1754638174591,3.0,3930.3,3930.2,0.55]
[1754638175102,3.0,3930.4,3930.2,0.52491]
[1754638175273,5.54389273,3931.0,3930.2,0.52491]
[1754638175475,2.54432453,3930.4,3930.2,0.52491]
[1754638175777,5.54421768,3930.5,3930.2,0.52491]
[1754638176089,2.54433503,3930.3,3930.2,0.52491]
[1754638176288,12.54398224,3930.9,3930.2,0.52491]
[1754638176491,2.54407611,3930.7,3929.9,3.893]
[1754638176689,40.0,3930.6,3929.8,3.893]
[1754638177006,2.54438679,3930.3,3929.7,3.893]
[1754638177202,26.0345181,3930.2,3929.8,0.55]
[1754638177404,2.544349,3930.3,3929.8,2.352]
[1754638177703,2.54428793,3930.4,3930.0,0.55]
[1754638177905,2.54440939,3930.2,3930.1,0.54740196]
[1754638178404,2.54439437,3930.3,3930.1,0.54740196]
[1754638178578,2.54439437,3930.3,3929.8,3.893]
[1754638178579,2.54401525,3930.8,3930.2,1.09740196]
[1754638178907,2.54417074,3930.6,3930.4,0.55]
[1754638179204,2.54412063,3930.7,3930.5,2.34962372]
[1754638179503,2.54332063,3930.7,3930.6,0.54762372]
[1754638179872,12.54403365,3930.8,3930.6,0.54762372]
[1754638180073,2.54403365,3930.8,3930.7,0.54762372]
[1754638180306,0.23277354,3931.1,3930.7,0.54762372]
[1754638180510,2.54394667,3930.9,3930.8,0.54762372]
[1754638181170,2.54394667,3930.9,3930.8,1.09762372]
[1754638181397,2.54393445,3931.0,3930.8,1.09762372]
[1754638181603,4.333575,3930.9,3930.8,0.55]
[1754638181806,0.23182967,3931.2,3930.9,3.55]
[1754638181973,0.23182967,3931.2,3931.1,3.55]
[1754638182173,0.002,3931.6,3931.1,4.09846713]
[1754638182503,32.41760095,3931.5,3931.2,0.54846713]
[1754638182803,2.73798265,3931.6,3931.4,0.55]
[1754638183003,32.54355843,3931.5,3931.4,0.55]
[1754638183207,3.892,3932.0,3931.4,1.09850406]
[1754638183511,2.54336436,3931.8,3931.0,3.0]
[1754638183681,2.54400343,3930.9,3930.4,1.802]
[1754638184007,43.892,3931.7,3930.5,0.2555]
[1754638184008,2.54412696,3930.7,3930.5,0.2555]
[1754638184212,2.54366785,3931.4,3930.5,3.892]
[1754638184213,2.54390372,3931.0,3930.5,3.892]
[1754638184373,10.0,3931.5,3929.8,0.2555]
[1754638184578,2.54433632,3930.3,3930.1,3.892]
[1754638184910,2.54433503,3930.3,3930.2,3.0]
[1754638185377,2.33551038,3930.5,3930.2,3.0]
[1754638185711,2.54433503,3930.3,3930.2,3.0]
[1754638186373,3.8912,3931.0,3930.2,3.0]